fUSD/lending_fUSD_20251224
["ID","MTS","AMOUNT","RATE_DAILY","PERIOD"]
[399651138,1766586640231,-300.0,0.00015634,2]
[399651139,1766586640242,-193.0,0.00015634,2]
[399651140,1766586640253,-600.0,0.00015634,2]
[399651141,1766586640266,-384.02629239,0.00015634,2]
[399651142,1766586640276,-300.0,0.00015634,2]
[399651143,1766586640287,-600.0,0.00015634,2]
[399651144,1766586640298,-1497.71,0.00015659,2]
[399651145,1766586640309,-166.66,0.00015706,2]
[399651146,1766586640319,-1000.0,0.00015721,2]
[399651147,1766586640330,-1000.0,0.00015721,2]
[399651148,1766586640340,-1000.0,0.00015721,2]
[399651149,1766586640351,-1000.0,0.00015721,2]
[399651150,1766586640362,-1000.0,0.00015721,2]
[399651151,1766586640373,-1000.0,0.00015721,2]
[399651152,1766586640384,-1000.0,0.00015721,2]
[399651153,1766586640395,-1000.0,0.00015721,2]
[399651154,1766586640407,-2229.87975614,0.00015807,2]
[399651155,1766586640417,-19306.15259024,0.00015807,2]
[399651156,1766586640428,-420.0,0.00015814,2]
[399651157,1766586640439,-420.0,0.00015814,2]
[399651158,1766586640451,-250.0,0.00015829,2]
[399651159,1766586640462,-195.0,0.00015829,2]
[399651160,1766586640474,-600.0,0.00015829,2]
[399651161,1766586640484,-2859.0,0.00015882,2]
[399651162,1766586640494,-1680.0,0.00015885,2]
[399651163,1766586640505,-300.0,0.00015885,2]
[399651164,1766586640515,-187.25641181,0.00015928,2]
[399651165,1766586640526,-1497.71,0.00015933,2]
[399651166,1766586640537,-4532.0,0.00015974,2]
[399651167,1766586640547,-23728.3415903,0.00016,2]
[399651168,1766586640557,-441.08570001,0.00016,2]
[399651169,1766586640568,-50729.22834233,0.00016,2]
[399651170,1766586640585,-41397.36173509,0.00016,4]
[399651171,1766586640595,-4532.0,0.00016024,2]
[399651172,1766586640607,-19306.15259024,0.0001608,2]
[399651173,1766586640618,-2859.0,0.0001614,2]
[399651174,1766586640628,-271.7600895,0.00016149,2]
[399651175,1766586640641,-5991.0,0.00016179,2]
[399651176,1766586640654,-2859.0,0.00016185,2]
[399651177,1766586640665,-5000.00709487,0.000162,5]
[399651178,1766586640676,-1497.71,0.00016207,2]
[399651179,1766586640687,-166.66,0.00016208,2]
[399651180,1766586640699,-4107.0,0.00016259,2]
[399651181,1766586640709,-248.97691074,0.0001626,2]
[399651182,1766586640721,-2859.0,0.00016261,2]
[399651183,1766586640731,-2859.0,0.00016263,2]
[399651184,1766586640743,-2859.0,0.00016268,2]
[399651185,1766586640753,-1500.0,0.00016268,2]
[399651186,1766586640764,-1500.0,0.00016268,2]
[399651187,1766586640775,-507.00799583,0.00016268,2]
[399651188,1766586640786,-1000.0,0.00016268,2]
[399651189,1766586640797,-1500.0,0.00016268,2]
[399651190,1766586640808,-1276.71718999,0.00016268,2]
[399651191,1766586640819,-1500.0,0.00016268,2]
[399651192,1766586640831,-1505.01239591,0.00016268,2]
[399651193,1766586640842,-500.0,0.000163,2]
[399651194,1766586640853,-500.0,0.000163,2]
[399651195,1766586640863,-500.0,0.000163,2]
[399651196,1766586640874,-554.17,0.00016301,2]
[399651197,1766586640885,-554.17,0.00016301,2]
[399651198,1766586640896,-554.17,0.00016301,2]
[399651199,1766586640907,-554.17,0.00016301,2]
[399651200,1766586640918,-554.17,0.00016301,2]
[399651201,1766586640928,-554.17,0.00016301,2]
[399651202,1766586640938,-554.17,0.00016301,2]
[399651203,1766586640954,-554.17,0.00016301,2]
[399651204,1766586640968,-554.17,0.00016301,2]
[399651205,1766586640978,-554.17,0.00016301,2]
[399651206,1766586640989,-554.17,0.00016301,2]
[399651207,1766586641000,-554.17,0.00016301,2]
[399651208,1766586641011,-554.17,0.00016301,2]
[399651209,1766586641022,-554.17,0.00016301,2]
[399651210,1766586641034,-554.17,0.00016301,2]
[399651211,1766586641045,-554.17,0.00016301,2]
[399651212,1766586641056,-554.17,0.00016301,2]
[399651213,1766586641066,-2859.0,0.00016308,2]
[399651214,1766586641077,-398.40831123,0.00016338,2]
[399651215,1766586641089,-1383.32534736,0.00016345,7]
[399651216,1766586641099,-4107.0,0.00016352,2]
[399651217,1766586641110,-19306.15259024,0.00016354,2]
[399651218,1766586641121,-166.77,0.00016361,2]
[399651219,1766586641132,-1410.4,0.00016361,2]
[399651220,1766586641143,-1000.0,0.000164,2]
[399651221,1766586641154,-39127.2004786,0.00016433,2]
[399651222,1766586641165,-76069.3615054,0.00016434,2]
[399651223,1766586641176,-500.0,0.00016438,2]
[399651224,1766586641187,-500.0,0.00016438,2]
[399651225,1766586641197,-500.0,0.00016438,2]
[399651226,1766586641208,-500.0,0.00016438,2]
[399651227,1766586641219,-500.0,0.00016438,2]
[399651228,1766586641229,-500.0,0.00016438,2]
[399651229,1766586641239,-500.0,0.00016438,2]
[399651230,1766586641250,-500.0,0.00016438,2]
[399651231,1766586641260,-500.0,0.00016438,2]
[399651232,1766586641272,-307.15311828,0.00016438,2]
[399651233,1766586641284,-500.0,0.00016438,2]
[399651234,1766586641295,-500.0,0.00016438,2]
[399651235,1766586641311,-500.0,0.00016438,2]
[399651236,1766586641321,-500.0,0.00016438,2]
[399651237,1766586641332,-500.0,0.00016438,2]
[399651238,1766586641342,-500.0,0.00016438,2]
[399651239,1766586641353,-500.0,0.00016438,2]
[399651240,1766586641363,-500.0,0.00016438,2]
[399651241,1766586641374,-500.0,0.00016438,2]
[399651242,1766586641385,-500.0,0.00016438,2]
[399651243,1766586641395,-500.0,0.00016438,2]
[399651244,1766586641407,-500.0,0.00016438,2]
[399651245,1766586641418,-500.0,0.00016438,2]
[399651246,1766586641429,-500.0,0.00016438,2]
[399651247,1766586641441,-500.0,0.00016438,2]
[399651248,1766586641452,-500.0,0.00016438,2]
[399651249,1766586641463,-500.0,0.00016438,2]
[399651250,1766586641478,-500.0,0.00016438,2]
[399651251,1766586641489,-500.0,0.00016438,2]
[399651252,1766586641500,-500.0,0.00016438,2]
[399651253,1766586641511,-250.0,0.00016438,2]
[399651254,1766586641522,-14397.82,0.00016438,2]
[399651255,1766586641533,-1497.71,0.00016481,2]
[399651256,1766586641545,-1000.0,0.000165,2]
[399651257,1766586641556,-1008.0,0.000166,2]
[399651258,1766586641566,-398.40831122,0.00016619,2]
[399651259,1766586641578,-554.17,0.0001663,2]
[399651260,1766586641588,-554.17,0.0001663,2]
[399651261,1766586641599,-2073.97339154,0.0001666,2]
[399651262,1766586641610,-204.06937007,0.00016699,2]
[399651263,1766586641621,-4107.0,0.00016706,2]
[399651264,1766586641632,-166.66,0.00016709,2]
[399651265,1766586641643,-164.83,0.00016712,2]
[399651266,1766586641654,-4107.0,0.00016729,2]
[399651267,1766586641669,-521.0,0.00016747,2]
[399651268,1766586641682,-287.61899177,0.00016749,2]
[399651269,1766586641693,-543.0,0.00016749,2]
[399651270,1766586641703,-334.5472959,0.00016749,2]
[399651271,1766586641714,-323.44007064,0.00016749,2]
[399651272,1766586641728,-1497.71,0.00016755,2]
[399651273,1766586641738,-433.0,0.00016779,2]
[399651274,1766586641749,-1263.0,0.00016784,2]
[399651275,1766586641759,-433.397,0.00016784,2]
[399651276,1766586641770,-1016.277,0.00016784,2]
[399651277,1766586641782,-912.0,0.00016784,2]
[399651278,1766586641793,-2430.0,0.00016784,2]
[399651279,1766586641804,-564.0,0.00016784,2]
[399651280,1766586641814,-4807.0,0.00016784,2]
[399651281,1766586641825,-151.35193963,0.00016807,2]
[399651282,1766586641835,-2000.0,0.00016816,2]
[399651283,1766586641846,-353.92874992,0.00016816,2]
[399651284,1766586641856,-220.50931807,0.00016816,2]
[399651285,1766586641867,-1013.73048679,0.00016816,2]
[399651286,1766586641877,-170.16,0.00016837,2]
[399651287,1766586641888,-200.0,0.00016864,2]
[399651288,1766586641899,-456.58012976,0.0001689,2]
[399651289,1766586641910,-456.58012971,0.00016892,2]
[399651290,1766586641920,-456.58012971,0.00016894,2]
[399651291,1766586641932,-456.58012971,0.00016896,2]
[399651292,1766586641942,-456.58012971,0.00016898,2]
[399651293,1766586641952,-165.0,0.000169,2]
[399651294,1766586641963,-165.0,0.000169,2]
[399651295,1766586641977,-165.0,0.000169,2]
[399651296,1766586641988,-398.40831122,0.000169,2]
[399651297,1766586641998,-389.79752753,0.000169,2]
[399651298,1766586642010,-685.66043144,0.000169,2]
[399651299,1766586642022,-537.02605009,0.000169,2]
[399651300,1766586642032,-456.58012971,0.000169,2]
[399651301,1766586642044,-185.72541202,0.000169,2]
[399651302,1766586642055,-500.0,0.00016985,2]
[399651303,1766586642066,-532.74252407,0.00016986,2]
[399651304,1766586642076,-360119.52,0.00016986,2]
[399651305,1766586642087,-521.0,0.00016998,2]
[399651306,1766586642098,-300.0,0.00016999,2]
[399651307,1766586642108,-309855.02430485,0.00017,2]
[399651308,1766586642118,-150.0,0.00017,2]
[399651309,1766586642128,-2903.80863836,0.00017,2]
[399651310,1766586642138,-150.0,0.00017,2]
[399651311,1766586642149,-671.20407632,0.00017,2]
[399651312,1766586642159,-150.0,0.00017,2]
[399651313,1766586642170,-18870.63954084,0.00017,2]
[399651314,1766586642181,-1000.0,0.00017,2]
[399651315,1766586642191,-250.0,0.00017,2]
[399651316,1766586642202,-200.0,0.00017,2]
[399651317,1766586642212,-200.0,0.00017,2]
[399651318,1766586642224,-217.814,0.00017,2]
[399651319,1766586642235,-150.811,0.00017,2]
[399651320,1766586642245,-228.266,0.00017,2]
[399651321,1766586642255,-250.0,0.00017,2]
[399651322,1766586642266,-156.381,0.00017,2]
[399651323,1766586642276,-211.528,0.00017,2]
[399651324,1766586642286,-250.0,0.00017,2]
[399651325,1766586642297,-250.0,0.00017,2]
[399651326,1766586642307,-166.0,0.00017,2]
[399651327,1766586642318,-226.805,0.00017,2]
[399651328,1766586642329,-254.10874609,0.00017,2]
[399651329,1766586642339,-2000.0,0.00017,2]
[399651330,1766586642350,-250.0,0.00017,2]
[399651331,1766586642361,-1004743.15578987,0.00017,2]
[399651332,1766586642386,-60586.15097523,0.00017,2]
[399651333,1766586642427,-642.76071279,0.00017,2]
[399651334,1766586642440,-1134.22,0.00017,2]
[399651335,1766586642536,500.0,0.00032876,120]
[399651336,1766586642592,-151.0,0.00015537,2]
[399651337,1766586642603,-620.65510317,0.00017,2]
[399651338,1766586642618,-1000.0,0.00017,2]
[399651339,1766586642630,-4355.8732805,0.00017,2]
[399651340,1766586642643,-14333.12649352,0.00017,2]
[399651341,1766586642719,500.0,0.00032876,120]
[399651342,1766586642824,611.10636358,0.00032876,120]
[399651343,1766586642906,500.0,0.00032876,120]
[399651346,1766586643079,478.84034102,0.00032876,120]
[399651348,1766586643367,-3389.19645253,0.00017,2]
[399651349,1766586643380,-9155.84279121,0.00017,2]
[399651350,1766586643396,-9120.91694568,0.00017,2]
[399651351,1766586643412,-437.051157,0.00017,2]
[399651352,1766586643428,-3709.7411688,0.00017,2]
[399651353,1766586643530,-3718256.51663271,0.00017,2]
[399651354,1766586643541,-151.0,0.00017,2]
[399651355,1766586643551,-151.0,0.00017,2]
[399651357,1766586643561,-1078975.46145842,0.00017,2]
[399651358,1766586643577,-19429.65,0.00017,2]
[399651359,1766586643589,-10666.38847742,0.00017,2]
[399651362,1766586644085,500.0,0.00032876,120]
[399651363,1766586644291,500.0,0.00032876,120]
[399651364,1766586644448,500.0,0.00032876,120]
[399651365,1766586644574,539.712552,0.00032876,120]
[399651366,1766586645189,-1012.68459326,0.00014442,2]
[399651367,1766586645249,-447.27153168,0.00014442,2]
[399651368,1766586645263,-663.43906993,0.00014442,2]
[399651369,1766586645824,500.0,0.00032876,120]
[399651379,1766586647013,500.0,0.00032876,120]
[399651380,1766586647089,500.0,0.00032876,120]
[399651381,1766586647165,511.02091741,0.00032876,120]
[399651382,1766586647242,500.0,0.00032876,120]
[399651383,1766586647369,500.0,0.00032876,120]
[399651384,1766586647823,500.0,0.00032876,120]
[399651385,1766586648062,500.0,0.00032876,120]
[399651386,1766586648129,500.0,0.00032876,120]
[399651387,1766586648193,261.102345,0.00032876,120]
[399651388,1766586648277,500.0,0.00032876,120]
[399651389,1766586648342,500.0,0.00032876,120]
[399651390,1766586648504,327.17800621,0.00032876,120]
[399651391,1766586648579,500.0,0.00032876,120]
[399651392,1766586648799,500.0,0.00032876,120]
[399651393,1766586649110,500.0,0.00032876,120]
[399651394,1766586649271,500.0,0.00032876,120]
[399651395,1766586649438,1159.49,0.00032876,120]
[399651396,1766586649515,500.0,0.00032876,120]
[399651397,1766586649667,1159.49,0.00032876,120]
[399651398,1766586649766,500.0,0.00032876,120]
[399651399,1766586649909,1159.49,0.00032876,120]
[399651400,1766586650069,600.0,0.00032876,120]
[399651401,1766586650139,500.0,0.00032876,120]
[399651402,1766586650204,500.0,0.00032876,120]
[399651403,1766586650418,1159.49,0.00032876,120]
[399651404,1766586650557,207.53246977,0.00032876,120]
[399651405,1766586650622,500.0,0.00032876,120]
[399651406,1766586650689,500.0,0.00032876,120]
[399651407,1766586650763,1159.49,0.00032876,120]
[399651408,1766586650840,500.0,0.00032876,120]
[399651409,1766586651027,208.19730146,0.00032876,120]
[399651410,1766586651099,500.0,0.00032876,120]
[399651411,1766586651168,1159.49,0.00032876,120]
[399651412,1766586651237,500.0,0.00032876,120]
[399651413,1766586651323,202.52860898,0.00032876,120]
[399651414,1766586651396,500.0,0.00032876,120]
[399651415,1766586651467,1159.49,0.00032876,120]
[399651416,1766586651590,500.0,0.00032876,120]
[399651417,1766586651656,1159.49,0.00032876,120]
[399651418,1766586651774,500.0,0.00032876,120]
[399651419,1766586651839,1159.49,0.00032876,120]
[399651420,1766586651927,500.0,0.00032876,120]
[399651421,1766586652056,1159.49,0.00032876,120]
[399651422,1766586652159,500.0,0.00032876,120]
[399651423,1766586652230,1159.49,0.00032876,120]
[399651424,1766586652639,500.0,0.00032876,120]
[399651425,1766586652786,1159.49,0.00032876,120]
[399651426,1766586652886,500.0,0.00032876,120]
[399651427,1766586652986,1159.49,0.00032876,120]
[399651428,1766586653102,500.0,0.00032876,120]
[399651429,1766586653169,506.37029014,0.00032876,120]
[399651430,1766586653237,1159.49,0.00032876,120]
[399651431,1766586653303,500.0,0.00032876,120]
[399651432,1766586653378,500.0,0.00032876,120]
[399651433,1766586653475,1159.49,0.00032876,120]
[399651434,1766586653544,337.08408113,0.00032876,120]
[399651435,1766586653617,500.0,0.00032876,120]
[399651436,1766586653693,1159.49,0.00032876,120]
[399651437,1766586653787,500.0,0.00032876,120]
[399651438,1766586653891,1159.49,0.00032876,120]
[399651439,1766586654097,500.0,0.00032876,120]
[399651440,1766586654171,1159.49,0.00032876,120]
[399651441,1766586654249,500.0,0.00032876,120]
[399651442,1766586654424,1159.49,0.00032876,120]
[399651443,1766586654498,500.0,0.00032876,120]
[399651444,1766586654599,1159.49,0.00032876,120]
[399651445,1766586654671,500.0,0.00032876,120]
[399651446,1766586654755,1159.49,0.00032876,120]
[399651447,1766586654827,500.0,0.00032876,120]
[399651448,1766586654926,1159.49,0.00032876,120]
[399651449,1766586655003,500.0,0.00032876,120]
[399651450,1766586655095,460.17424132,0.00032876,120]
[399651451,1766586655169,1159.49,0.00032876,120]
[399651452,1766586655302,1159.5842175,0.00032876,120]
[399651453,1766586655563,500.0,0.00032876,120]
[399651454,1766586655840,500.0,0.00032876,120]
[399651455,1766586656239,500.0,0.00032876,120]
[399651456,1766586656526,631.47,0.00032876,120]
[399651457,1766586656602,500.0,0.00032876,120]
[399651458,1766586656676,500.0,0.00032876,120]
[399651459,1766586656772,631.47,0.00032876,120]
[399651460,1766586656845,500.0,0.00032876,120]
[399651461,1766586656919,500.0,0.00032876,120]
[399651462,1766586656997,500.0,0.00032876,120]
[399651463,1766586657900,500.0,0.00032876,120]
[399651464,1766586657986,500.0,0.00032876,120]
[399651465,1766586658059,631.47,0.00032876,120]
[399651466,1766586658130,528.93277849,0.00032876,120]
[399651467,1766586658203,500.0,0.00032876,120]
[399651468,1766586658272,500.0,0.00032876,120]
[399651469,1766586658352,500.0,0.00032876,120]
[399651470,1766586658448,500.0,0.00032876,120]
[399651471,1766586658522,500.0,0.00032876,120]
[399651472,1766586658592,500.0,0.00032876,120]
[399651473,1766586658660,500.0,0.00032876,120]
[399651474,1766586658739,631.47,0.00032876,120]
[399651475,1766586658821,500.0,0.00032876,120]
[399651476,1766586658886,500.0,0.00032876,120]
[399651477,1766586658951,500.0,0.00032876,120]
[399651478,1766586659026,500.0,0.00032876,120]
[399651479,1766586659097,631.47,0.00032876,120]
[399651480,1766586659173,500.0,0.00032876,120]
[399651481,1766586659253,531.64864099,0.00032876,120]
[399651482,1766586659328,500.0,0.00032876,120]
[399651483,1766586659420,500.0,0.00032876,120]
[399651484,1766586659506,631.47,0.00032876,120]
[399651485,1766586659578,317.24012754,0.00032876,120]
[399651486,1766586659647,500.0,0.00032876,120]
[399651487,1766586659713,500.0,0.00032876,120]
[399651488,1766586659784,631.47,0.00032876,120]
[399651489,1766586659864,500.0,0.00032876,120]
[399651490,1766586659942,500.0,0.00032876,120]
[399651491,1766586660031,631.47,0.00032876,120]
[399651492,1766586660109,500.0,0.00032876,120]
[399651493,1766586660178,500.0,0.00032876,120]
[399651494,1766586660300,631.47,0.00032876,120]
[399651495,1766586660381,500.0,0.00032876,120]
[399651496,1766586660453,302.10494957,0.00032876,120]
[399651497,1766586660559,500.0,0.00032876,120]
[399651498,1766586660630,631.47,0.00032876,120]
[399651499,1766586660745,631.47,0.00032876,120]
[399651500,1766586660952,500.0,0.00032876,120]
[399651501,1766586661054,460.86720945,0.00032876,120]
[399651502,1766586661125,631.47,0.00032876,120]
[399651503,1766586661214,631.47,0.00032876,120]
[399651504,1766586661306,631.47,0.00032876,120]
[399651505,1766586661435,631.47,0.00032876,120]
[399651506,1766586661607,631.47,0.00032876,120]
[399651507,1766586661719,631.47,0.00032876,120]
[399651508,1766586661795,631.47,0.00032876,120]
[399651509,1766586662056,631.47,0.00032876,120]
[399651510,1766586662137,500.0,0.00032876,120]
[399651511,1766586662230,631.47,0.00032876,120]
[399651512,1766586662304,500.0,0.00032876,120]
[399651513,1766586662381,631.47,0.00032876,120]
[399651514,1766586662461,500.0,0.00032876,120]
[399651515,1766586662528,631.47,0.00032876,120]
[399651516,1766586662630,500.0,0.00032876,120]
[399651517,1766586662698,631.47,0.00032876,120]
[399651518,1766586662850,500.0,0.00032876,120]
[399651519,1766586662941,631.65439768,0.00032876,120]
[399651520,1766586663033,500.0,0.00032876,120]
[399651521,1766586663261,500.0,0.00032876,120]
[399651522,1766586663350,171.41488015,0.00032876,120]
[399651523,1766586663503,500.0,0.00032876,120]
[399651524,1766586663591,500.0,0.00032876,120]
[399651525,1766586663775,500.0,0.00032876,120]
[399651526,1766586664004,500.0,0.00032876,120]
[399651527,1766586664231,500.0,0.00032876,120]
[399651528,1766586664514,500.0,0.00032876,120]
[399651529,1766586664594,500.0,0.00032876,120]
[399651530,1766586664672,500.0,0.00032876,120]
[399651531,1766586664778,500.0,0.00032876,120]
[399651532,1766586664856,500.0,0.00032876,120]
[399651533,1766586664929,500.0,0.00032876,120]
[399651534,1766586665114,500.0,0.00032876,120]
[399651535,1766586665184,557.15306635,0.00032876,120]
[399651536,1766586665262,500.0,0.00032876,120]
[399651537,1766586665349,500.0,0.00032876,120]
[399651538,1766586665436,500.0,0.00032876,120]
[399651539,1766586665523,500.0,0.00032876,120]
[399651540,1766586665596,500.0,0.00032876,120]
[399651541,1766586665683,500.0,0.00032876,120]
[399651542,1766586665754,500.0,0.00032876,120]
[399651543,1766586665986,500.0,0.00032876,120]
[399651544,1766586666068,536.29811893,0.00032876,120]
[399651545,1766586666135,500.0,0.00032876,120]
[399651546,1766586666250,500.0,0.00032876,120]
[399651547,1766586666323,500.0,0.00032876,120]
[399651548,1766586666643,500.0,0.00032876,120]
[399651549,1766586666711,500.0,0.00032876,120]
[399651550,1766586666798,500.0,0.00032876,120]
[399651551,1766586666865,500.0,0.00032876,120]
[399651552,1766586667081,500.0,0.00032876,120]
[399651553,1766586667157,500.0,0.00032876,120]
[399651554,1766586667259,500.0,0.00032876,120]
[399651555,1766586667339,500.0,0.00032876,120]
[399651556,1766586667408,500.0,0.00032876,120]
[399651557,1766586667501,500.0,0.00032876,120]
[399651558,1766586667576,500.0,0.00032876,120]
[399651559,1766586667658,500.0,0.00032876,120]
[399651560,1766586667755,500.0,0.00032876,120]
[399651561,1766586667824,500.0,0.00032876,120]
[399651562,1766586668351,500.0,0.00032876,120]
[399651563,1766586668426,500.0,0.00032876,120]
[399651564,1766586668523,510.75126612,0.00032876,120]
[399651565,1766586668603,500.0,0.00032876,120]
[399651566,1766586668681,500.0,0.00032876,120]
[399651567,1766586668871,500.0,0.00032876,120]
[399651568,1766586668942,500.0,0.00032876,120]
[399651569,1766586669026,500.0,0.00032876,120]
[399651570,1766586669166,500.0,0.00032876,120]
[399651571,1766586669237,500.0,0.00032876,120]
[399651572,1766586669327,500.0,0.00032876,120]
[399651573,1766586669392,500.0,0.00032876,120]
[399651574,1766586669460,500.0,0.00032876,120]
[399651575,1766586669646,500.0,0.00032876,120]
[399651576,1766586669714,500.0,0.00032876,120]
[399651577,1766586669788,500.0,0.00032876,120]
[399651578,1766586669860,500.0,0.00032876,120]
[399651579,1766586669944,548.75721925,0.00032876,120]
[399651580,1766586670061,500.0,0.00032876,120]
[399651581,1766586670488,500.0,0.00032876,120]
[399651582,1766586670565,500.0,0.00032876,120]
[399651583,1766586670636,541.40587895,0.00032876,120]
[399651584,1766586670719,500.0,0.00032876,120]
[399651585,1766586670785,500.0,0.00032876,120]
[399651586,1766586670880,500.0,0.00032876,120]
[399651587,1766586670954,500.0,0.00032876,120]
[399651588,1766586671023,500.0,0.00032876,120]
[399651589,1766586671100,500.0,0.00032876,120]
[399651590,1766586671171,500.0,0.00032876,120]
[399651591,1766586671245,500.0,0.00032876,120]
[399651592,1766586671326,500.0,0.00032876,120]
[399651593,1766586671419,500.0,0.00032876,120]
[399651594,1766586671486,414.92343913,0.00032876,120]
[399651595,1766586671556,500.0,0.00032876,120]
[399651596,1766586671696,500.0,0.00032876,120]
[399651597,1766586671770,615.68959933,0.00032876,120]
[399651598,1766586671850,500.0,0.00032876,120]
[399651599,1766586671927,500.0,0.00032876,120]
[399651600,1766586672111,500.0,0.00032876,120]
[399651601,1766586672183,496.10293475,0.00032876,120]
[399651602,1766586672285,500.0,0.00032876,120]
[399651603,1766586672381,515.55142073,0.00032876,120]
[399651604,1766586672467,506.62091258,0.00032876,120]
[399651605,1766586673083,587.1797624,0.00032876,120]
[399651606,1766586673231,500.0,0.00032876,120]
[399651607,1766586673412,506.8623426,0.00032876,120]
[399651608,1766586673486,500.0,0.00032876,120]
[399651609,1766586673595,500.0,0.00032876,120]
[399651610,1766586673700,500.0,0.00032876,120]
[399651611,1766586673854,500.0,0.00032876,120]
[399651612,1766586673922,500.0,0.00032876,120]
[399651613,1766586673996,500.0,0.00032876,120]
[399651614,1766586674173,500.0,0.00032876,120]
[399651615,1766586674255,500.0,0.00032876,120]
[399651616,1766586674321,500.0,0.00032876,120]
[399651617,1766586674386,500.0,0.00032876,120]
[399651618,1766586674465,504.36407217,0.00032876,120]
[399651619,1766586674530,500.0,0.00032876,120]
[399651620,1766586674600,500.0,0.00032876,120]
[399651621,1766586674682,500.0,0.00032876,120]
[399651622,1766586674751,506.84228546,0.00032876,120]
[399651623,1766586674830,536.22454468,0.00032876,120]
[399651624,1766586674903,500.0,0.00032876,120]
[399651625,1766586675062,500.0,0.00032876,120]
[399651626,1766586675148,500.0,0.00032876,120]
[399651627,1766586675213,500.0,0.00032876,120]
[399651628,1766586675294,500.0,0.00032876,120]
[399651629,1766586675362,500.0,0.00032876,120]
[399651630,1766586675429,500.0,0.00032876,120]
[399651631,1766586675591,500.0,0.00032876,120]
[399651632,1766586675657,500.0,0.00032876,120]
[399651633,1766586675749,500.0,0.00032876,120]
[399651634,1766586675951,500.0,0.00032876,120]
[399651635,1766586676033,500.0,0.00032876,120]
[399651636,1766586676203,500.0,0.00032876,120]
[399651637,1766586676310,500.0,0.00032876,120]
[399651638,1766586676378,500.0,0.00032876,120]
[399651639,1766586676452,500.0,0.00032876,120]
[399651640,1766586676521,500.0,0.00032876,120]
[399651641,1766586676599,500.0,0.00032876,120]
[399651642,1766586676670,500.0,0.00032876,120]
[399651643,1766586676738,500.0,0.00032876,120]
[399651644,1766586676811,500.0,0.00032876,120]
[399651645,1766586676881,548.68983301,0.00032876,120]
[399651646,1766586676950,500.0,0.00032876,120]
[399651647,1766586677017,636.75358716,0.00032876,120]
[399651648,1766586677097,500.0,0.00032876,120]
[399651649,1766586677164,500.0,0.00032876,120]
[399651650,1766586677231,624.8507282,0.00032876,120]
[399651651,1766586677299,500.0,0.00032876,120]
[399651652,1766586677383,500.0,0.00032876,120]